[Event "Live Chess"]
[Site "Chess.com"]
[Date "2023.05.20"]
[Round "-"]
[White "Singapourfeuj"]
[Black "Delacorta"]
[Result "1-0"]
[WhiteElo "2251"]
[BlackElo "1393"]
[TimeControl "300"]
[EndTime "10:37:47 PDT"]
[Termination "Singapourfeuj won by resignation"]

1. e4 {[%clk 0:04:57.9]} 1... e6 {[%clk 0:04:58.6]} 2. d4 {[%clk 0:04:56.7]}
2... d5 {[%clk 0:04:57.6]} 3. Nc3 {[%clk 0:04:56]} 3... dxe4 {[%clk 0:04:56.3]}
4. f3 {[%clk 0:04:54.8]} 4... Nf6 {[%clk 0:04:41.6]} 5. fxe4 {[%clk 0:04:43.6]}
5... Nbd7 {[%clk 0:04:40]} 6. Nf3 {[%clk 0:04:32.7]} 6... b6 {[%clk 0:04:38.8]}
7. Bd3 {[%clk 0:04:10.1]} 7... Bb7 {[%clk 0:04:37.1]} 8. O-O {[%clk 0:04:08.6]}
8... Be7 {[%clk 0:04:26.4]} 9. Qe1 {[%clk 0:04:04.8]} 9... O-O {[%clk 0:04:18]}
10. Bg5 {[%clk 0:04:03.5]} 10... c5 {[%clk 0:04:08.4]} 11. e5 {[%clk 0:03:57.8]}
11... Nd5 {[%clk 0:04:01]} 12. Qh4 {[%clk 0:03:54.1]} 12... g6 {[%clk
0:03:44.3]} 13. Nxd5 {[%clk 0:03:49.5]} 13... Bxd5 {[%clk 0:03:42.6]} 14. Bxe7
{[%clk 0:03:40.6]} 1-0

[Event "Live Chess"]
[Site "Chess.com"]
[Date "2023.05.20"]
[Round "-"]
[White "BostonStrangler"]
[Black "Olisingapore"]
[Result "1-0"]
[WhiteElo "2097"]
[BlackElo "1935"]
[TimeControl "300"]
[EndTime "10:37:54 PDT"]
[Termination "BostonStrangler won by resignation"]

1. Nf3 {[%clk 0:04:55.1]} 1... d5 {[%clk 0:04:58.6]} 2. g3 {[%clk 0:04:54.4]}
2... c5 {[%clk 0:04:55.6]} 3. Bg2 {[%clk 0:04:53.9]} 3... Nc6 {[%clk 0:04:55.2]}
4. O-O {[%clk 0:04:50.7]} 4... Nf6 {[%clk 0:04:48.7]} 5. d4 {[%clk 0:04:47.2]}
5... cxd4 {[%clk 0:04:44.4]} 6. Nxd4 {[%clk 0:04:46]} 6... Nxd4 {[%clk
0:04:42.7]} 7. Qxd4 {[%clk 0:04:44.5]} 7... Bf5 {[%clk 0:04:38.7]} 8. c4 {[%clk
0:04:42.9]} 8... e6 {[%clk 0:04:36.1]} 9. cxd5 {[%clk 0:04:40.6]} 9... exd5
{[%clk 0:04:33.2]} 10. Nc3 {[%clk 0:04:34.9]} 10... Be6 {[%clk 0:04:30.6]} 11.
Bf4 {[%clk 0:04:29.3]} 11... b6 {[%clk 0:04:27.2]} 12. e4 {[%clk 0:04:06.1]}
12... Bc5 {[%clk 0:04:22.5]} 13. Qa4+ {[%clk 0:03:55.2]} 13... Bd7 {[%clk
0:04:17.2]} 14. Qb3 {[%clk 0:03:52.4]} 14... d4 {[%clk 0:04:11.7]} 15. e5 {[%clk
0:03:51.4]} 15... Nh5 {[%clk 0:04:07.4]} 16. Bxa8 {[%clk 0:03:39]} 16... Qxa8
{[%clk 0:04:05.7]} 17. Nd5 {[%clk 0:03:36]} 17... Be6 {[%clk 0:04:03.7]} 18.
Nc7+ {[%clk 0:03:34]} 1-0

[Event "Live Chess"]
[Site "Chess.com"]
[Date "2023.05.20"]
[Round "-"]
[White "Enhard"]
[Black "luckywookie"]
[Result "1-0"]
[WhiteElo "1438"]
[BlackElo "732"]
[TimeControl "300"]
[EndTime "10:37:58 PDT"]
[Termination "Enhard won by resignation"]

1. d4 {[%clk 0:04:57.8]} 1... d5 {[%clk 0:04:58]} 2. c4 {[%clk 0:04:56.5]} 2...
c6 {[%clk 0:04:56.6]} 3. Nc3 {[%clk 0:04:53.5]} 3... Nf6 {[%clk 0:04:52.9]} 4.
a3 {[%clk 0:04:50.1]} 4... Bf5 {[%clk 0:04:43.6]} 5. Bg5 {[%clk 0:04:48.1]} 5...
Nbd7 {[%clk 0:04:39.4]} 6. e3 {[%clk 0:04:46.8]} 6... e6 {[%clk 0:04:37.7]} 7.
Nf3 {[%clk 0:04:44.9]} 7... Bg4 {[%clk 0:04:34.1]} 8. Be2 {[%clk 0:04:43.8]}
8... Bd6 {[%clk 0:04:28.8]} 9. O-O {[%clk 0:04:40]} 9... O-O {[%clk 0:04:16.9]}
10. cxd5 {[%clk 0:04:37.1]} 10... cxd5 {[%clk 0:04:09.6]} 11. Bxf6 {[%clk
0:04:35.3]} 11... Nxf6 {[%clk 0:04:06.5]} 12. h3 {[%clk 0:04:25.1]} 12... Bxf3
{[%clk 0:03:59.6]} 13. Bxf3 {[%clk 0:04:23.9]} 13... Rc8 {[%clk 0:03:54.5]} 14.
Rc1 {[%clk 0:04:22.2]} 14... Qe7 {[%clk 0:03:45.4]} 15. Nb5 {[%clk 0:04:16.1]}
15... e5 {[%clk 0:03:35.2]} 16. Nxd6 {[%clk 0:04:14]} 16... Qxd6 {[%clk
0:03:33.3]} 17. dxe5 {[%clk 0:04:13.1]} 17... Qxe5 {[%clk 0:03:30.2]} 18. Rxc8
{[%clk 0:04:12]} 18... Rxc8 {[%clk 0:03:26.9]} 19. b4 {[%clk 0:04:08.5]} 19...
h6 {[%clk 0:03:23.7]} 20. Qd2 {[%clk 0:04:02.3]} 20... Ne4 {[%clk 0:03:14.9]}
21. Bxe4 {[%clk 0:03:57.4]} 21... Qxe4 {[%clk 0:03:10.2]} 22. Rd1 {[%clk
0:03:55.5]} 22... Rd8 {[%clk 0:03:07.4]} 23. Qd3 {[%clk 0:03:53.2]} 23... Qxd3
{[%clk 0:02:44.6]} 24. Rxd3 {[%clk 0:03:51.8]} 24... Kf8 {[%clk 0:02:43.6]} 25.
Kf1 {[%clk 0:03:50.7]} 25... Ke7 {[%clk 0:02:42.4]} 26. Ke2 {[%clk 0:03:50.6]}
26... Ke6 {[%clk 0:02:41.2]} 27. Rd4 {[%clk 0:03:50]} 27... Ke5 {[%clk
0:02:36.7]} 28. Kd3 {[%clk 0:03:41.9]} 28... Rc8 {[%clk 0:02:32.8]} 29. Kd2
{[%clk 0:03:35.4]} 29... b5 {[%clk 0:02:27.2]} 30. f4+ {[%clk 0:03:33.2]} 30...
Ke6 {[%clk 0:02:20.5]} 31. e4 {[%clk 0:03:27.4]} 31... dxe4 {[%clk 0:02:14.6]}
32. Rxe4+ {[%clk 0:03:26.2]} 32... Kf6 {[%clk 0:02:05.4]} 33. Kd3 {[%clk
0:03:24.3]} 33... Rc7 {[%clk 0:01:57.9]} 34. g3 {[%clk 0:03:20.1]} 34... g6
{[%clk 0:01:53.4]} 35. Re5 {[%clk 0:03:11.7]} 35... a6 {[%clk 0:01:50.7]} 36.
Kd4 {[%clk 0:03:10.3]} 36... Rc2 {[%clk 0:01:35.4]} 37. Re3 {[%clk 0:03:07.9]}
37... Kf5 {[%clk 0:01:26.1]} 38. Re5+ {[%clk 0:02:51.4]} 38... Kf6 {[%clk
0:01:23]} 39. Re3 {[%clk 0:02:45]} 39... Kf5 {[%clk 0:01:21.1]} 40. Kd5 {[%clk
0:02:43.3]} 40... g5 {[%clk 0:01:10.1]} 41. fxg5 {[%clk 0:02:22.4]} 41... hxg5
{[%clk 0:01:08]} 42. Re5+ {[%clk 0:02:18.1]} 42... Kf6 {[%clk 0:01:06.2]} 43.
Re3 {[%clk 0:02:15]} 43... Rc4 {[%clk 0:01:01.5]} 44. Rf3+ {[%clk 0:02:02.8]}
44... Kg6 {[%clk 0:00:58.7]} 45. Ke5 {[%clk 0:01:54.6]} 45... f6+ {[%clk
0:00:56.9]} 46. Rxf6+ {[%clk 0:01:53]} 46... Kh5 {[%clk 0:00:51.3]} 47. Rf3
{[%clk 0:01:50.5]} 47... Rc5+ {[%clk 0:00:40]} 48. bxc5 {[%clk 0:01:47.4]} 1-0

[Event "Live Chess"]
[Site "Chess.com"]
[Date "2023.05.20"]
[Round "-"]
[White "lord_cll"]
[Black "VovaOvchar1990"]
[Result "1-0"]
[WhiteElo "1202"]
[BlackElo "1180"]
[TimeControl "300"]
[EndTime "10:38:00 PDT"]
[Termination "lord_cll won on time"]

1. e4 {[%clk 0:04:55.1]} 1... d5 {[%clk 0:04:59.9]} 2. exd5 {[%clk 0:04:53.7]}
2... Qxd5 {[%clk 0:04:59.8]} 3. Nc3 {[%clk 0:04:53.3]} 3... Qe5+ {[%clk
0:04:57.8]} 4. Be2 {[%clk 0:04:49.8]} 4... Bf5 {[%clk 0:04:55.8]} 5. Nf3 {[%clk
0:04:47.1]} 5... Qb5 {[%clk 0:04:48.3]} 6. Bxb5+ {[%clk 0:04:44]} 6... c6 {[%clk
0:04:29.9]} 7. Bc4 {[%clk 0:04:34.8]} 7... e6 {[%clk 0:04:19.4]} 8. d3 {[%clk
0:04:31.5]} 8... f6 {[%clk 0:03:43.1]} 9. Qe2 {[%clk 0:04:18.3]} 9... Bc5 {[%clk
0:03:24.9]} 10. Be3 {[%clk 0:03:39.6]} 10... Bd6 {[%clk 0:03:16.3]} 11. O-O-O
{[%clk 0:03:26.3]} 11... Ne7 {[%clk 0:03:11.8]} 12. Nd4 {[%clk 0:03:21.7]} 12...
Bg6 {[%clk 0:03:08.1]} 13. Nxe6 {[%clk 0:03:16.7]} 13... Nd7 {[%clk 0:02:48.2]}
14. Nxg7+ {[%clk 0:03:09.2]} 14... Kd8 {[%clk 0:02:45.9]} 15. Ne6+ {[%clk
0:03:07.9]} 15... Kc8 {[%clk 0:02:43.7]} 16. Bf4 {[%clk 0:02:52.1]} 16... Bb4
{[%clk 0:02:15.4]} 17. Ne4 {[%clk 0:02:29.9]} 17... Nf5 {[%clk 0:01:53.4]} 18.
a3 {[%clk 0:01:59.1]} 18... Ba5 {[%clk 0:01:49.7]} 19. Nd6+ {[%clk 0:01:31.9]}
19... Nxd6 {[%clk 0:01:24]} 20. Bxd6 {[%clk 0:01:31.8]} 20... Re8 {[%clk
0:01:14.7]} 21. Qg4 {[%clk 0:01:16.7]} 21... a6 {[%clk 0:01:05.9]} 22. b4 {[%clk
0:01:06.7]} 22... Bd8 {[%clk 0:00:58.8]} 23. Rhe1 {[%clk 0:00:47.3]} 23... b5
{[%clk 0:00:55.6]} 24. Bb3 {[%clk 0:00:44]} 24... Kb7 {[%clk 0:00:53.7]} 25.
Nc5+ {[%clk 0:00:38.2]} 25... Nxc5 {[%clk 0:00:50.5]} 26. Bxc5 {[%clk
0:00:33.8]} 26... Bc7 {[%clk 0:00:43.9]} 27. Rxe8 {[%clk 0:00:28.7]} 27... Rxe8
{[%clk 0:00:41.9]} 28. Qd7 {[%clk 0:00:27.5]} 28... Rd8 {[%clk 0:00:30.5]} 29.
Qg7 {[%clk 0:00:24.5]} 29... Kc8 {[%clk 0:00:23.4]} 30. Be6+ {[%clk 0:00:21.6]}
30... Kb8 {[%clk 0:00:19.5]} 31. Qe7 {[%clk 0:00:17.5]} 31... Bf4+ {[%clk
0:00:17.5]} 32. Kb2 {[%clk 0:00:15.2]} 32... Be5+ {[%clk 0:00:15.7]} 33. c3
{[%clk 0:00:13]} 33... Bc7 {[%clk 0:00:10.6]} 34. Be3 {[%clk 0:00:07.9]} 34...
Re8 {[%clk 0:00:07.1]} 35. Qg7 {[%clk 0:00:06.4]} 35... Rxe6 {[%clk 0:00:05.5]}
36. Re1 {[%clk 0:00:02.2]} 36... Kb7 {[%clk 0:00:03.5]} 37. f4 {[%clk
0:00:00.9]} 37... Bxd3 {[%clk 0:00:01.1]} 38. g3 {[%clk 0:00:00.8]} 1-0

[Event "Live Chess"]
[Site "Chess.com"]
[Date "2023.05.20"]
[Round "-"]
[White "SavagePawn7"]
[Black "YF22Raptor"]
[Result "0-1"]
[WhiteElo "750"]
[BlackElo "1012"]
[TimeControl "300"]
[EndTime "10:38:07 PDT"]
[Termination "YF22Raptor won by resignation"]

1. e4 {[%clk 0:04:57.1]} 1... c6 {[%clk 0:04:59.6]} 2. Bc4 {[%clk 0:04:54.6]}
2... d5 {[%clk 0:04:59.2]} 3. exd5 {[%clk 0:04:52.2]} 3... cxd5 {[%clk
0:04:58.8]} 4. Bb3 {[%clk 0:04:49.3]} 4... Nc6 {[%clk 0:04:58.2]} 5. Qf3 {[%clk
0:04:47]} 5... Nf6 {[%clk 0:04:57.8]} 6. Nc3 {[%clk 0:04:41.9]} 6... e6 {[%clk
0:04:57.4]} 7. Ba4 {[%clk 0:04:31.8]} 7... Bd7 {[%clk 0:04:53.8]} 8. Qe3 {[%clk
0:04:18.9]} 8... b6 {[%clk 0:04:49.7]} 9. Nf3 {[%clk 0:04:18.8]} 9... Bc5 {[%clk
0:04:48.4]} 10. Qg5 {[%clk 0:04:09.7]} 10... Bxf2+ {[%clk 0:04:42.2]} 11. Kxf2
{[%clk 0:04:03.9]} 11... O-O {[%clk 0:04:29.9]} 12. Bxc6 {[%clk 0:04:00.6]}
12... Bxc6 {[%clk 0:04:27.6]} 13. d3 {[%clk 0:03:55.9]} 13... h6 {[%clk
0:04:21.9]} 14. Qh4 {[%clk 0:03:40.8]} 14... d4 {[%clk 0:04:18.3]} 15. Ng5
{[%clk 0:03:20.8]} 15... hxg5 {[%clk 0:04:05]} 16. Bxg5 {[%clk 0:03:13.5]} 16...
dxc3 {[%clk 0:04:02.3]} 17. bxc3 {[%clk 0:03:08]} 17... b5 {[%clk 0:03:43]} 18.
g4 {[%clk 0:03:01.3]} 18... Bxh1 {[%clk 0:03:35.6]} 19. Bxf6 {[%clk 0:02:52.1]}
19... Qxf6+ {[%clk 0:03:32.8]} 20. Qxf6 {[%clk 0:02:49.6]} 20... gxf6 {[%clk
0:03:32.2]} 21. Kg1 {[%clk 0:02:48.8]} 21... Bf3 {[%clk 0:03:29.9]} 22. Kf2
{[%clk 0:02:46.7]} 22... Bxg4 {[%clk 0:03:28.7]} 23. Kg3 {[%clk 0:02:45.2]}
23... Bh5 {[%clk 0:03:28.3]} 24. Rd1 {[%clk 0:02:37.1]} 24... Bg6 {[%clk
0:03:27.8]} 25. Rf1 {[%clk 0:02:33.4]} 25... Rac8 {[%clk 0:03:24.4]} 26. Rxf6
{[%clk 0:02:33.3]} 26... Rxc3 {[%clk 0:03:23.2]} 27. Kg4 {[%clk 0:02:24.8]}
27... Rxc2 {[%clk 0:03:21]} 28. Kg5 {[%clk 0:02:24.7]} 28... Rxh2 {[%clk
0:03:19.6]} 29. Rxg6+ {[%clk 0:02:21.7]} 29... fxg6 {[%clk 0:03:18]} 30. Kxg6
{[%clk 0:02:21.6]} 30... Rg2+ {[%clk 0:03:16.5]} 31. Kh5 {[%clk 0:02:19.5]}
31... Rf7 {[%clk 0:03:15.3]} 0-1

[Event "Live Chess"]
[Site "Chess.com"]
[Date "2023.05.20"]
[Round "-"]
[White "CheckThis4"]
[Black "domrobson"]
[Result "1-0"]
[WhiteElo "2546"]
[BlackElo "1742"]
[TimeControl "300"]
[EndTime "10:38:39 PDT"]
[Termination "CheckThis4 won by checkmate"]

1. d4 {[%clk 0:04:58.1]} 1... Nf6 {[%clk 0:04:58.4]} 2. Nc3 {[%clk 0:04:55]}
2... e6 {[%clk 0:04:57.5]} 3. e4 {[%clk 0:04:52.4]} 3... d5 {[%clk 0:04:48.5]}
4. e5 {[%clk 0:04:46.9]} 4... Nfd7 {[%clk 0:04:47.1]} 5. f4 {[%clk 0:04:45.5]}
5... c5 {[%clk 0:04:44.4]} 6. Nf3 {[%clk 0:04:43.9]} 6... Qb6 {[%clk 0:04:39.3]}
7. Na4 {[%clk 0:04:27.2]} 7... Qc7 {[%clk 0:04:31.2]} 8. c3 {[%clk 0:04:09.3]}
8... a6 {[%clk 0:04:25.6]} 9. Be3 {[%clk 0:03:57.8]} 9... cxd4 {[%clk
0:04:21.3]} 10. cxd4 {[%clk 0:03:53.4]} 10... b5 {[%clk 0:04:19.7]} 11. Nc3
{[%clk 0:03:51.9]} 11... Be7 {[%clk 0:04:17.3]} 12. Rc1 {[%clk 0:03:49.9]} 12...
Qd8 {[%clk 0:04:12.2]} 13. Bd3 {[%clk 0:03:48.2]} 13... O-O {[%clk 0:04:10.1]}
14. O-O {[%clk 0:03:47.1]} 14... f6 {[%clk 0:04:08.5]} 15. f5 {[%clk 0:03:42.6]}
15... fxe5 {[%clk 0:04:05.7]} 16. fxe6 {[%clk 0:03:40.2]} 16... Nb6 {[%clk
0:03:58.6]} 17. Nxe5 {[%clk 0:03:29.7]} 17... Bxe6 {[%clk 0:03:55]} 18. Qh5
{[%clk 0:03:24.4]} 18... h6 {[%clk 0:03:41.2]} 19. Bxh6 {[%clk 0:03:20.1]} 19...
gxh6 {[%clk 0:03:38.1]} 20. Qg6+ {[%clk 0:03:18.4]} 20... Kh8 {[%clk 0:03:36.8]}
21. Qh7# {[%clk 0:03:16.8]} 1-0

[Event "Live Chess"]
[Site "Chess.com"]
[Date "2023.05.20"]
[Round "-"]
[White "flyingpuffins"]
[Black "mightysmasher"]
[Result "1-0"]
[WhiteElo "1976"]
[BlackElo "2092"]
[TimeControl "300"]
[EndTime "10:38:41 PDT"]
[Termination "flyingpuffins won by checkmate"]

1. e4 {[%clk 0:04:58.3]} 1... e6 {[%clk 0:04:58.9]} 2. d4 {[%clk 0:04:57.1]}
2... d5 {[%clk 0:04:58.2]} 3. e5 {[%clk 0:04:56.8]} 3... c5 {[%clk 0:04:56.9]}
4. c3 {[%clk 0:04:56.3]} 4... Nc6 {[%clk 0:04:55.1]} 5. Nf3 {[%clk 0:04:56]}
5... Bd7 {[%clk 0:04:54.4]} 6. Bd3 {[%clk 0:04:54.6]} 6... Qb6 {[%clk
0:04:53.5]} 7. dxc5 {[%clk 0:04:53.2]} 7... Bxc5 {[%clk 0:04:52.3]} 8. O-O
{[%clk 0:04:52.3]} 8... Nh6 {[%clk 0:04:49.4]} 9. Nbd2 {[%clk 0:04:39.7]} 9...
Ng4 {[%clk 0:04:46.9]} 10. Qe2 {[%clk 0:04:29]} 10... O-O {[%clk 0:04:38.5]} 11.
h3 {[%clk 0:04:20.5]} 11... Nh6 {[%clk 0:04:37.1]} 12. Nb3 {[%clk 0:04:09.7]}
12... Be7 {[%clk 0:04:34.5]} 13. Bxh6 {[%clk 0:04:08.3]} 13... gxh6 {[%clk
0:04:32.8]} 14. Nfd4 {[%clk 0:03:49.2]} 14... Qc7 {[%clk 0:04:24.8]} 15. Nxc6
{[%clk 0:03:34.7]} 15... bxc6 {[%clk 0:04:20.2]} 16. Qh5 {[%clk 0:03:28.5]}
16... Kg7 {[%clk 0:04:16.4]} 17. f4 {[%clk 0:03:13.2]} 17... c5 {[%clk
0:04:13.2]} 18. Rf3 {[%clk 0:02:56.2]} 18... c4 {[%clk 0:03:53.6]} 19. Rg3+
{[%clk 0:01:58.4]} 19... Bg5 {[%clk 0:03:34.2]} 20. Rxg5+ {[%clk 0:01:56.4]}
20... Kh8 {[%clk 0:03:31.7]} 21. Qxh6 {[%clk 0:01:53.4]} 21... cxd3 {[%clk
0:03:30.2]} 22. Qg7# {[%clk 0:01:50.7]} 1-0

[Event "Live Chess"]
[Site "Chess.com"]
[Date "2023.05.20"]
[Round "-"]
[White "Dark_Night123"]
[Black "lHolyDiverl"]
[Result "1-0"]
[WhiteElo "1582"]
[BlackElo "562"]
[TimeControl "300"]
[EndTime "10:38:55 PDT"]
[Termination "Dark_Night123 won by resignation"]

1. e4 {[%clk 0:04:58.9]} 1... c6 {[%clk 0:04:57.2]} 2. d4 {[%clk 0:04:57.5]}
2... d5 {[%clk 0:04:56.6]} 3. f3 {[%clk 0:04:56.7]} 3... dxe4 {[%clk 0:04:39.4]}
4. fxe4 {[%clk 0:04:56.6]} 4... Nf6 {[%clk 0:04:29.8]} 5. Nc3 {[%clk 0:04:55.4]}
5... Na6 {[%clk 0:04:08.3]} 6. Bxa6 {[%clk 0:04:46.7]} 6... bxa6 {[%clk
0:04:07.2]} 7. Nf3 {[%clk 0:04:46.1]} 7... c5 {[%clk 0:03:54.9]} 8. d5 {[%clk
0:04:39]} 8... Bg4 {[%clk 0:03:46.5]} 9. O-O {[%clk 0:04:34.4]} 9... e6 {[%clk
0:03:44.6]} 10. dxe6 {[%clk 0:04:25.9]} 10... Qxd1 {[%clk 0:03:40.8]} 11. exf7+
{[%clk 0:04:24.5]} 11... Kxf7 {[%clk 0:03:35]} 12. Rxd1 {[%clk 0:04:23.6]} 12...
Be7 {[%clk 0:03:17.2]} 13. Ne5+ {[%clk 0:04:22.2]} 1-0

[Event "Live Chess"]
[Site "Chess.com"]
[Date "2023.05.20"]
[Round "-"]
[White "Missedidea"]
[Black "ramses-IIG"]
[Result "1-0"]
[WhiteElo "1616"]
[BlackElo "773"]
[TimeControl "300"]
[EndTime "10:39:02 PDT"]
[Termination "Missedidea won by checkmate"]

1. d4 {[%clk 0:04:56.9]} 1... d5 {[%clk 0:04:55.5]} 2. c4 {[%clk 0:04:54.9]}
2... Nc6 {[%clk 0:04:55.4]} 3. Nc3 {[%clk 0:04:52.2]} 3... dxc4 {[%clk
0:04:53.7]} 4. d5 {[%clk 0:04:50.7]} 4... b5 {[%clk 0:04:53.6]} 5. dxc6 {[%clk
0:04:47.1]} 5... Qd6 {[%clk 0:04:51.6]} 6. Qxd6 {[%clk 0:04:41.6]} 6... exd6
{[%clk 0:04:49.5]} 7. Nxb5 {[%clk 0:04:40.8]} 7... Ba6 {[%clk 0:04:45.6]} 8.
Nxc7+ {[%clk 0:04:38.6]} 8... Kd8 {[%clk 0:04:40]} 9. Nxa8 {[%clk 0:04:37.2]}
9... Bb5 {[%clk 0:04:39.3]} 10. c7+ {[%clk 0:04:33.8]} 10... Kc8 {[%clk
0:04:37.8]} 11. e4 {[%clk 0:04:27.8]} 11... Bc6 {[%clk 0:04:37.2]} 12. Bxc4
{[%clk 0:04:22.3]} 12... f6 {[%clk 0:04:32.7]} 13. Be6+ {[%clk 0:04:18.1]} 13...
Bd7 {[%clk 0:04:25.7]} 14. Bxd7+ {[%clk 0:04:16.1]} 14... Kxd7 {[%clk
0:04:24.2]} 15. Bf4 {[%clk 0:04:12.9]} 15... Ne7 {[%clk 0:04:17.2]} 16. O-O-O
{[%clk 0:04:09.7]} 16... Kc8 {[%clk 0:04:15.8]} 17. Rxd6 {[%clk 0:04:04.5]}
17... Ng6 {[%clk 0:04:09.8]} 18. Rd8+ {[%clk 0:04:03.1]} 18... Kb7 {[%clk
0:04:08.1]} 19. c8=Q# {[%clk 0:04:01.5]} 1-0

[Event "Live Chess"]
[Site "Chess.com"]
[Date "2023.05.20"]
[Round "-"]
[White "Ra2orLeaf"]
[Black "garyjc"]
[Result "0-1"]
[WhiteElo "1130"]
[BlackElo "1035"]
[TimeControl "300"]
[EndTime "10:39:07 PDT"]
[Termination "garyjc won by resignation"]

1. c4 {[%clk 0:04:59.2]} 1... Nf6 {[%clk 0:04:54.9]} 2. Nc3 {[%clk 0:04:59.1]}
2... g6 {[%clk 0:04:54]} 3. e3 {[%clk 0:04:58.6]} 3... Bg7 {[%clk 0:04:53.3]} 4.
Nf3 {[%clk 0:04:57.6]} 4... O-O {[%clk 0:04:52.5]} 5. d4 {[%clk 0:04:56.9]} 5...
d6 {[%clk 0:04:51.9]} 6. Bd3 {[%clk 0:04:56.3]} 6... Nbd7 {[%clk 0:04:50.9]} 7.
Bd2 {[%clk 0:04:55.8]} 7... Re8 {[%clk 0:04:49.3]} 8. Kf1 {[%clk 0:04:53.6]}
8... e5 {[%clk 0:04:48.3]} 9. dxe5 {[%clk 0:04:51.3]} 9... dxe5 {[%clk
0:04:47.5]} 10. e4 {[%clk 0:04:47.8]} 10... Nc5 {[%clk 0:04:44.2]} 11. Qc2
{[%clk 0:04:45.8]} 11... Nxd3 {[%clk 0:04:41.9]} 12. h4 {[%clk 0:04:42.5]} 12...
Nb4 {[%clk 0:04:33.5]} 13. h5 {[%clk 0:04:40.5]} 13... Nxc2 {[%clk 0:04:30.9]}
14. hxg6 {[%clk 0:04:37.6]} 14... fxg6 {[%clk 0:04:29.9]} 15. Rd1 {[%clk
0:04:34.7]} 15... Nd4 {[%clk 0:04:16.6]} 16. Nxd4 {[%clk 0:04:32.5]} 16... exd4
{[%clk 0:04:15.7]} 17. Nd5 {[%clk 0:04:32.2]} 17... Nxd5 {[%clk 0:04:13.8]} 18.
cxd5 {[%clk 0:04:28.2]} 18... Bg4 {[%clk 0:04:07.6]} 19. f3 {[%clk 0:04:23.2]}
19... Bh5 {[%clk 0:04:01.9]} 20. g4 {[%clk 0:04:17.1]} 20... Qf6 {[%clk
0:03:56.4]} 21. gxh5 {[%clk 0:04:14]} 21... Qxf3+ {[%clk 0:03:55]} 22. Ke1
{[%clk 0:04:13.1]} 22... Rxe4+ {[%clk 0:03:50.8]} 23. Be3 {[%clk 0:04:07]} 0-1

[Event "Live Chess"]
[Site "Chess.com"]
[Date "2023.05.20"]
[Round "-"]
[White "koljadar"]
[Black "MMmaaxxxx"]
[Result "0-1"]
[WhiteElo "1519"]
[BlackElo "2023"]
[TimeControl "300"]
[EndTime "10:39:24 PDT"]
[Termination "MMmaaxxxx won by resignation"]

1. d4 {[%clk 0:04:58.4]} 1... d5 {[%clk 0:04:59.4]} 2. c4 {[%clk 0:04:55.8]}
2... e5 {[%clk 0:04:58.5]} 3. dxe5 {[%clk 0:04:54.2]} 3... d4 {[%clk 0:04:57.9]}
4. Nf3 {[%clk 0:04:53.2]} 4... Nc6 {[%clk 0:04:57.2]} 5. e3 {[%clk 0:04:48.3]}
5... Bb4+ {[%clk 0:04:54.4]} 6. Bd2 {[%clk 0:04:45.3]} 6... dxe3 {[%clk
0:04:53.9]} 7. fxe3 {[%clk 0:04:42.9]} 7... Bg4 {[%clk 0:04:52.2]} 8. Be2 {[%clk
0:04:41.3]} 8... Nge7 {[%clk 0:04:50.5]} 9. O-O {[%clk 0:04:40]} 9... Bxd2
{[%clk 0:04:48.7]} 10. Nbxd2 {[%clk 0:04:34.4]} 10... Ng6 {[%clk 0:04:48.3]} 11.
Qa4 {[%clk 0:04:24]} 11... O-O {[%clk 0:04:46.2]} 12. Rad1 {[%clk 0:04:21.9]}
12... Qe7 {[%clk 0:04:41.2]} 13. Nd4 {[%clk 0:03:54]} 13... Bxe2 {[%clk
0:04:06.4]} 14. Nxe2 {[%clk 0:03:53.9]} 14... Ngxe5 {[%clk 0:04:05.1]} 15. Qb3
{[%clk 0:03:33.9]} 15... Rab8 {[%clk 0:03:58.7]} 16. Nf4 {[%clk 0:03:23]} 16...
Rfd8 {[%clk 0:03:54.9]} 17. Nd5 {[%clk 0:03:20.7]} 17... Qc5 {[%clk 0:03:46]}
18. Nf3 {[%clk 0:03:10]} 18... Qxc4 {[%clk 0:03:31.5]} 19. Nxc7 {[%clk
0:02:53.9]} 19... Qxb3 {[%clk 0:03:25.6]} 20. Rxd8+ {[%clk 0:02:49.7]} 20...
Rxd8 {[%clk 0:03:23.8]} 21. axb3 {[%clk 0:02:47.4]} 21... a6 {[%clk 0:03:13.6]}
22. e4 {[%clk 0:02:36.4]} 22... Rd3 {[%clk 0:02:58.8]} 23. Nxe5 {[%clk
0:02:14.3]} 23... Nxe5 {[%clk 0:02:57.6]} 24. b4 {[%clk 0:02:11.8]} 24... Rd4
{[%clk 0:02:47.2]} 25. Nd5 {[%clk 0:01:24.5]} 25... Rxe4 {[%clk 0:02:41.5]} 26.
Rc1 {[%clk 0:01:22.9]} 26... Nc6 {[%clk 0:02:33.1]} 27. Kf2 {[%clk 0:01:12]}
27... f5 {[%clk 0:02:27.9]} 28. h3 {[%clk 0:01:03.9]} 28... Nxb4 {[%clk
0:02:21.3]} 29. Ne3 {[%clk 0:00:54.3]} 29... Nd3+ {[%clk 0:02:12]} 0-1

[Event "Live Chess"]
[Site "Chess.com"]
[Date "2023.05.20"]
[Round "-"]
[White "MaximKhimchenko"]
[Black "terrub10"]
[Result "1-0"]
[WhiteElo "1346"]
[BlackElo "796"]
[TimeControl "300"]
[EndTime "10:39:24 PDT"]
[Termination "MaximKhimchenko won by checkmate"]

1. e4 {[%clk 0:04:57.7]} 1... e5 {[%clk 0:04:58]} 2. Nf3 {[%clk 0:04:57.6]} 2...
Nc6 {[%clk 0:04:55.9]} 3. Bc4 {[%clk 0:04:57]} 3... Nf6 {[%clk 0:04:49.9]} 4. d4
{[%clk 0:04:54.3]} 4... d5 {[%clk 0:04:47.9]} 5. exd5 {[%clk 0:04:50.5]} 5...
exd4 {[%clk 0:04:45.3]} 6. dxc6 {[%clk 0:04:47.7]} 6... bxc6 {[%clk 0:04:40.3]}
7. O-O {[%clk 0:04:42.9]} 7... Bg4 {[%clk 0:04:37.9]} 8. Re1+ {[%clk 0:04:41.3]}
8... Ne4 {[%clk 0:04:36.2]} 9. Rxe4+ {[%clk 0:04:39]} 9... Be7 {[%clk
0:04:33.5]} 10. Rxg4 {[%clk 0:04:37.6]} 10... d3 {[%clk 0:04:24]} 11. Bxf7+
{[%clk 0:04:34.6]} 11... Kxf7 {[%clk 0:04:21.7]} 12. Ne5+ {[%clk 0:04:34.1]}
12... Ke6 {[%clk 0:04:19.8]} 13. Qe1 {[%clk 0:04:31.3]} 13... a5 {[%clk
0:04:10.9]} 14. Nxc6+ {[%clk 0:04:28]} 14... Kd7 {[%clk 0:04:06.9]} 15. Nxd8
{[%clk 0:04:27.9]} 15... Bb4 {[%clk 0:04:03.3]} 16. Rd4+ {[%clk 0:04:26.8]}
16... Kc8 {[%clk 0:03:59.7]} 17. Qe6+ {[%clk 0:04:24.2]} 17... Kb8 {[%clk
0:03:58.1]} 18. Nc6+ {[%clk 0:04:19.2]} 18... Kb7 {[%clk 0:03:55.5]} 19. Nxb4
{[%clk 0:04:14.2]} 19... Ra6 {[%clk 0:03:50.8]} 20. Qxa6+ {[%clk 0:04:08.3]}
20... Kb8 {[%clk 0:03:46.7]} 21. Nc6# {[%clk 0:04:08.2]} 1-0